{"text_format":"1","workbook":"xlsx","n_sheets":15,"sheets":["Home","Dashboard","Inspections","Service Date Odometer","Quarterly Odometer","Pivot Table Service Date Odomet","Vehicle Data","Equipment Data","Tools Data","Inventory List","Maintenance Schedule","Admin","Chemical Inventory","Slings","Pivot Table"],"not_rendered":{"charts":1,"images":24,"macros":1,"external_links":0,"defined_names":0,"comments":0,"pivot_tables":6},"unopened":[],"bounds":{"document_bytes":16777216,"sheet_cells":100000,"rows_first":2000,"rows_last":500,"rows_between":2000,"halvings":0,"cell_chars":16384,"cell_head_chars":4096},"cells_cut":0,"cells_raw":0,"read":"whole","date_system":"1900"}

{"sheet":"Home","index":0,"n_rows":1,"n_cols":1,"rows_kept":1,"cut":false,"hidden":false,"merged":[[0,0,0,25]]}
["PREVENTATIVE MAINTENANCE LOG"]

{"sheet":"Dashboard","index":1,"n_rows":0,"n_cols":0,"rows_kept":0,"cut":false,"hidden":false,"merged":[]}

{"sheet":"Inspections","index":2,"n_rows":55,"n_cols":8,"rows_kept":55,"cut":false,"hidden":false,"merged":[]}
["S. No.","Date of Data Entry","Item","Inspection Date","Frequency","Location","Inspector","Issues/Concerns"]
[{"$f":"ROW()-1","v":1},"2022-08-17T10:27:03","Fire Extinguisher","2022-08-03","Monthly","Front Main Office","Joe Degraaf"]
[2,"2022-08-17T10:28:07","Fire Extinguisher","2022-08-03","Monthly","Shop Lunchroom","Joe Degraaf"]
[3,"2022-08-17T10:30:57","Fire Extinguisher","2022-08-03","Monthly","Corey's Office","Joe Degraaf"]
[4,"2022-08-17T10:33:28","Fire Extinguisher","2022-08-03","Monthly","Southeast machine Shop","Joe Degraaf"]
[5,"2022-08-17T10:35:38","Fire Extinguisher","2022-08-03","Weekly","East Wall Tool Crib","Joe Degraaf"]
[6,"2022-08-17T10:37:49","Fire Extinguisher","2022-08-03","Weekly","West Wall Tool Crib","Joe Degraaf"]
[7,"2022-08-17T10:38:24","Fire Extinguisher","2022-08-03","Weekly","Central Tool Crib","Joe Degraaf"]
[8,"2022-08-17T10:39:01","Fire Extinguisher","2022-08-03","Monthly","East Wall Pipe Shop","Joe Degraaf"]
[9,"2022-08-17T10:39:32","Fire Extinguisher","2022-08-03","Monthly","North Wall Sandblast Shop","Joe Degraaf"]
[10,"2022-08-17T10:40:03","Fire Extinguisher","2022-08-03","Monthly","East Wall Sandblast Shop","Joe Degraaf"]
[11,"2022-08-17T10:40:52","Fire Extinguisher","2022-08-03","Monthly","Back Main Office","Joe Degraaf"]
[12,"2022-08-17T10:41:25","Fire Extinguisher","2022-08-03","Monthly","Stainless Steel Sea Can","Joe Degraaf"]
[13,"2022-08-17T10:49:16","Fire Extinguisher","2022-08-03","Monthly","East Wall Machine Shop","Joe Degraaf"]
[14,"2022-08-17T10:52:58","Fire Extinguisher","2022-08-03","Monthly","Boring Mill","Joe Degraaf"]
[15,"2022-08-17T10:53:19","Fire Extinguisher","2022-08-03","Monthly","Wate Jet","Joe Degraaf"]
[16,"2022-08-17T10:53:46","Fire Extinguisher","2022-08-03","Monthly","North Wall Fab Shop","Joe Degraaf"]
[17,"2022-08-17T10:54:15","Fire Extinguisher","2022-08-03","Monthly","Outside Horizontal Band Saw","Joe Degraaf"]
[18,"2022-08-17T10:54:40","Fire Extinguisher","2022-08-03","Monthly","Southeast Fab Shop","Joe Degraaf"]
[19,"2022-08-17T10:55:14","Fire Extinguisher","2022-08-03","Monthly","Entrance to Fab Shop Doorway","Joe Degraaf"]
[20,"2022-08-17T10:55:39","Fire Extinguisher","2022-08-03","Monthly","Outside Machine Shop","Joe Degraaf"]
[21,"2022-08-17T10:56:32","Fire Extinguisher","2022-08-03","Monthly","Grove Crane","Joe Degraaf"]
[22,"2022-08-17T10:57:00","Fire Extinguisher","2022-08-09","Monthly","Truck 5","Joe Degraaf"]
[23,"2022-08-17T10:57:32","Fire Extinguisher","2022-08-11","Monthly","Shop Forklift Caterpillar 1","Joe Degraaf"]
[24,"2022-08-17T10:58:05","Fire Extinguisher","2022-08-11","Monthly","Shop Forklift Caterpillar 2","Joe Degraaf"]
[25,"2022-08-17T10:58:36","Fire Extinguisher","2022-08-11","Monthly","Truck 3","Joe Degraaf"]
[26,"2022-08-17T10:59:14","Fire Extinguisher","2022-08-11","Monthly","Truck 7","Joe Degraaf"]
[27,"2022-08-17T11:04:09","Site Inspection","2022-06-01","Weekly","Mann St","Brent, Joe Ken"]
[28,"2022-08-17T11:04:37","Site Inspection","2022-06-09","Weekly","Mann St.","Joe, Justin, Ken"]
[29,"2022-08-17T11:05:03","Site Inspection","2022-06-16","Weekly","Mann St","Brent, Joe, Ken"]
[30,"2022-08-17T11:05:30","Site Inspection","2022-06-21","Weekly","Mann St.","Brent, Jonathan"]
[31,"2022-08-17T11:06:02","Site Inspection","2022-06-23","Weekly","Mann St.","Brent, Joe, Ken"]
[32,"2022-08-17T11:08:58","Site Inspection","2022-06-28","Weekly","Mann St","Jonathan, Brent"]
[{"$f":"ROW()-1","v":33},"2022-08-17T11:09:29","Site Inspection","2022-07-07","Weekly","Mann St.","Jonathan, Bill"]
[34,"2022-08-17T11:09:53","Site Inspection","2022-07-14","Weekly","Mann St.","Joe, Bill"]
[35,"2022-08-17T11:10:18","Site Inspection","2022-07-22","Weekly","Mann St.","Jonathan, Bill"]
[36,"2022-08-17T11:10:41","Site Inspection","2022-07-27","Weekly","Mann St.","Joe, Bill"]
[37,"2022-08-17T11:11:09","Site Inspection","2022-08-03","Weekly","Mann St.","Joe, Bill"]
[38,"2022-08-17T11:11:34","Site Inspection","2022-08-11","Weekly","Mann St.","Chris, Joe"]
[39,"2022-08-17T11:12:04","Site Inspection","2022-06-02","Weekly","Main Shop","Travis"]
[40,"2022-08-17T11:12:23","Site Inspection","2022-06-09","Weekly","Main Shop","Walter"]
[41,"2022-08-17T11:12:47","Site Inspection","2022-06-17","Weekly","Main Shop","Corey, Joe, Prince"]
[42,"2022-08-17T11:13:08","Site Inspection","2022-06-21","Weekly","Main Shop","Jonathan, Prince"]
[43,"2022-08-17T11:13:46","Site Inspection","2022-07-07","Weekly","Main Shop","Eugene, Jonathan, Prince"]
[44,"2022-08-17T11:14:13","Site Inspection","2022-07-15","Weekly","Main Shop","Joe, Walter"]
[45,"2022-08-17T11:14:32","Site Inspection","2022-07-22","Weekly","Main Shop","Parker"]
[46,"2022-08-17T11:14:57","Site Inspection","2022-07-28","Weekly","Main Shop","Joe, Walter"]
[47,"2022-08-17T11:15:29","Site Inspection","2022-08-05","Weekly","Main Shop","Corey, Joe"]
[48,"2022-08-17T11:16:01","Site Inspection","2022-06-20","Weekly","Mill","Joe, Parker, Travis"]
[49,"2022-08-17T11:16:21","Site Inspection","2022-07-05","Weekly","Mill","Chris"]
[50,"2022-08-17T11:16:46","Site Inspection","2022-07-08","Weekly","Mill","Chris, Matt D"]
[51,"2022-08-17T11:17:17","Site Inspection","2022-07-20","Weekly","Mill","Joe"]
[52,"2022-08-17T11:17:47","Site Inspection","2022-06-01","Weekly","Harmac Pacific","Chris, Joe"]
[53,"2022-08-17T11:18:11","Site Inspection","2022-06-02","Weekly","Shell Bare Point","Jonathan"]
[54,"2022-08-17T11:18:37","Site Inspection","2022-06-16","Weekly","Shell Bare Point","Jonathan"]

{"sheet":"Service Date Odometer","index":3,"n_rows":7,"n_cols":2,"rows_kept":7,"cut":false,"hidden":true,"merged":[]}
[]
[]
["Service Date","(Multiple Items)"]
[]
[null,"Column Labels"]
["Row Labels","Unit 7"]
["2022"]

{"sheet":"Quarterly Odometer","index":4,"n_rows":9,"n_cols":3,"rows_kept":9,"cut":false,"hidden":true,"merged":[]}
[]
[]
[null,"Column Labels"]
[null,"Unit 7"]
["Row Labels","Quarterly Odometer","Quarterly Difference"]
["2022"]
["Qtr1",238526]
["Qtr2",239331,805]
["Qtr3",242073,2742]

{"sheet":"Pivot Table Service Date Odomet","index":5,"n_rows":14,"n_cols":2,"rows_kept":14,"cut":false,"hidden":true,"merged":[]}
[]
["Vehicle Unit Number","Unit 7"]
[]
["Row Labels","Max of Odometer2"]
["2020",223912]
["Jan",223912]
["2021",235333]
["Sep",235333]
["2022"]
["Jan"]
["Mar"]
["Apr"]
["Jun"]
["Jul"]

{"sheet":"Vehicle Data","index":6,"n_rows":2,"n_cols":18,"rows_kept":2,"cut":false,"hidden":false,"merged":[[0,11,0,14],[0,0,0,9],[0,15,0,17]]}
["VEHICLE INFORMATION",null,null,null,null,null,null,null,null,null,null,"SERVICE/MAINTENANCE PERFORMED",null,null,null,"MILEAGE"]
[{"$f":"ROW()-1","v":1},"Date","Vehicle Unit Number","Make","Model","VIN","Plate No.","Odometer","Service Date","Service Provider","Issue","Regular Maintenance","Repair/Replacement","Completed","Invoice No.","Start","End","Quarterly Mileage"]

{"sheet":"Equipment Data","index":7,"n_rows":1,"n_cols":11,"rows_kept":1,"cut":false,"hidden":false,"merged":[]}
[{"$f":"ROW()-1","v":0},"Date","Equipment","VIN/SN","Make","Model","Odometer/Hours","Service Date","Service Provider","Issue","Maintenannce Performed"]

{"sheet":"Tools Data","index":8,"n_rows":1,"n_cols":10,"rows_kept":1,"cut":false,"hidden":false,"merged":[]}
[{"$f":"ROW()-1","v":0},"Date","Tool","Serial No.","Manufacturer","Maintenance Provider","Maintenance Date","Date put in service","Issue","Maintenance Description"]

{"sheet":"Inventory List","index":9,"n_rows":28,"n_cols":10,"rows_kept":28,"cut":false,"hidden":false,"merged":[[2,6,7,6],[9,6,10,6],[13,6,20,6],[23,6,27,6]]}
[null,null,null,null,null,null,"Type","Equipment","Quantity","Remarks"]
[]
[null,null,null,null,null,null,"Mobile Equipment","Vehicles/Trucks",8,"On SiteDocs"]
[null,null,null,null,null,null,null,"Forklifts",4,"On SiteDocs"]
[null,null,null,null,null,null,null,"Scissor Lift",1,"On SiteDocs"]
[null,null,null,null,null,null,null,"JLG",1,"On SiteDocs"]
[null,null,null,null,null,null,null,"Hiab",1,"On SiteDocs"]
[null,null,null,null,null,null,null,"Grove Yard Crane",1,"On SiteDocs"]
[]
[null,null,null,null,null,null,"PPE","Respirators"]
[null,null,null,null,null,null,null,"Harness/Lanyard"]
[]
[]
[null,null,null,null,null,null,"Fixed Mechanical Equipment","Plate Bending Rolls",1,"Corey's"]
[null,null,null,null,null,null,null,"Press Brake",1,"Corey's"]
[null,null,null,null,null,null,null,"Bench Grinder",1,"Corey's"]
[null,null,null,null,null,null,null,"Drill Press",1,"Corey's"]
[null,null,null,null,null,null,null,"Plasma Cutter",1,"Corey's"]
[null,null,null,null,null,null,null,"Threading machine",1,"Corey's"]
[null,null,null,null,null,null,null,"Hydraulic Press",1,"Corey's"]
[null,null,null,null,null,null,null,"Plate Shear",1,"Corey's"]
[]
[]
[null,null,null,null,null,null,"Tools/Equipment/Instruments","Angle Grinders"]
[null,null,null,null,null,null,null,"Fire Extinguishers"]
[null,null,null,null,null,null,null,"Eyewash Stations",1]
[null,null,null,null,null,null,null,"First Aid Room",1]
[null,null,null,null,null,null,null,"Slings"]

{"sheet":"Maintenance Schedule","index":10,"n_rows":19,"n_cols":17,"rows_kept":19,"cut":false,"hidden":false,"merged":[[0,5,0,16]]}
["Type of Inspection","Schedule",null,null,null,"Pickup Truck - Recommended Maintenance"]
[null,null,null,null,null,"Mileage","15k","30k","45k","60k","75k","90k","100k","105k","120k","135k","150k"]
["Complete inspection and certification","Annual",null,null,null,"Inspect brake pads, shoes, rotors and drums, brake lines and hoses, and parking brake system","X","X","X","X","X","X",null,"X","X","X","X"]
["Critical items, controls, overall functioning","Daily",null,null,null,"Change automatic transmission fluid",null,"X",null,"X",null,"X",null,null,"X"]
["Safety device. Hooks, cables, electrical","Monthly",null,null,null,"Replace fuel filter",null,"X",null,"X",null,"X",null,null,"X",null,"X"]
["Complete inspection","Every three months",null,null,null,"Inspect PCV for flow (3V engines)",null,null,null,null,null,null,null,null,null,null,"X"]
["Repair","When failure occurs",null,null,null,"Inspect engine cooling system and hoses","X","X","X","X","X","X",null,"X","X","X","X"]
["preventative maintenance","Manufacturer's recommendation",null,null,null,"Replace engine air filter",null,"X",null,"X",null,"X",null,null,"X",null,"X"]
["Complete inspection","Before put to work",null,null,null,"Inspect wheel ends for end play and noise","X","X","X","X","X","X",null,"X","X","X","X"]
["Repair","When failure occurs",null,null,null,"Change engine coolant",null,null,null,null,null,null,"X",null,null,null,"X"]
["Preventative maintenance","Manufacturer's recommendation",null,null,null,"Replace accessory drive belts (if not replaced within last 100,000 miles)",null,null,null,null,null,null,null,null,null,null,"X"]
["Operator's checklist","Daily",null,null,null,"Inspect complete exhaust system and heat shields",null,"X",null,"X",null,"X",null,null,"X",null,"X"]
["Complete inspection","Every three months",null,null,null,"Replace cabin air filter, if equipped","X","X","X","X","X","X",null,"X","X","X","X"]
["Repair","When failure occurs",null,null,null,"Replace spark plugs",null,null,null,null,null,null,"X"]
["Preventative maintenance","Manufacturer's recommendation",null,null,null,"Inspect automatic transmission fluid level (if equipped with under hood dipstick)","X","X","X","X","X","X",null,"X","X","X","X"]
["Deformation, cracks, corrosion, etc.","Daily",null,null,null,"Inspect accessory drive belts",null,null,null,null,null,null,"X"]
["Regular inspections of all devices","Every three months",null,null,null,"Change transfer case fluid",null,null,null,null,null,null,null,null,null,null,"X"]
[null,null,null,null,null,"Change front axle lubricant",null,null,null,null,null,null,null,null,null,null,"X"]
[null,null,null,null,null,"Inspect and lubricate steering linkage, ball joints, suspension, half shafts, drive shaft and u-joints","X","X","X","X","X","X","X","X","X","X","X"]

{"sheet":"Admin","index":11,"n_rows":11,"n_cols":15,"rows_kept":11,"cut":false,"hidden":false,"merged":[]}
["Vehicle","Make","Model","VIN","Plate Number","Engine","Chassis","Miscellaneous","Equipment","Tools","Frequency","Inspection",null,null,"Users"]
["Unit 1","Ford","F150",null,null,"Oil & Filter Change","Tire Repair / Replacement","Windshield Wiper Repl.","Forklift","Grinder","Daily/Per Use","Site Inspection",null,null,"Jonathan"]
["Unit 2","Dodge","F250",null,null,"Air Filter Change","Tire Rotation / Balance","Bulb Replacement","JLG","Sling","Weekly","Fire Extinguisher",null,null,"Joe"]
["Unit 3","Toyota","F350",null,null,"Fuel Filter Change","Tire Alignment","Replace Gas Cap",null,"Shackle","Monthly","First Aid Room"]
["Unit 4","Chevrolet","F450",null,null,"Transmission Fluid","Brake Pad Replacement","Replace ABS Sensor",null,null,"Annually","Eyewash Stations"]
["Unit 5","Honda","Ram 1500",null,null,"Engine Coolant","Lubricate Chassis","Replace TPMS Sensor"]
["Unit 6",null,"Ram 2500",null,null,"Hose Replacement","Lubricate Suspension","Replace License Plate Assembly"]
["Unit 7",null,"Chevy 1500",null,null,"Belt Replacement","Lubricate Joints"]
["Unit 9",null,"Chevy 2500",null,null,"Battery Replacement","Replace Caliper/Rotor"]
[null,null,null,null,null,"Clean Fuel Injection"]
[null,null,null,null,null,"Replace Fuel Pump"]

{"sheet":"Chemical Inventory","index":12,"n_rows":161,"n_cols":9,"rows_kept":161,"cut":false,"hidden":false,"merged":[[0,0,0,5]]}
["CHEMICAL PRODUCT INVENTORY",null,null,null,null,null,{"$f":"TODAY()","v":"2023-02-19"},"TOTAL SDS","EXPIRED SDS"]
["BRAND NAME","PRODUCT NAME","SDS","REVISION DATE","EXPIRED/NEED SDS",null,null,{"$f":"COUNTA(C3:C161)","v":0},{"$f":"COUNTIF(E3:E1004,\"yes\")","v":159}]
[null,null,null,null,{"$f":"IF((D3+1095)<$G$1,\"Yes\",\"\")","v":"Yes"}]
[null,null,null,null,{"$f":"IF((D4+1095)<$G$1,\"Yes\",\"\")","v":"Yes"}]
[null,null,null,null,"Yes"]
[null,null,null,null,"Yes"]
[null,null,null,null,"Yes"]
[null,null,null,null,"Yes"]
[null,null,null,null,"Yes"]
[null,null,null,null,"Yes"]
[null,null,null,null,"Yes"]
[null,null,null,null,"Yes"]
[null,null,null,null,"Yes"]
[null,null,null,null,"Yes"]
[null,null,null,null,"Yes"]
[null,null,null,null,"Yes"]
[null,null,null,null,"Yes"]
[null,null,null,null,"Yes"]
[null,null,null,null,"Yes"]
[null,null,null,null,"Yes"]
[null,null,null,null,"Yes"]
[null,null,null,null,"Yes"]
[null,null,null,null,"Yes"]
[null,null,null,null,"Yes"]
[null,null,null,null,"Yes"]
[null,null,null,null,"Yes"]
[null,null,null,null,"Yes"]
[null,null,null,null,"Yes"]
[null,null,null,null,"Yes"]
[null,null,null,null,"Yes"]
[null,null,null,null,"Yes"]
[null,null,null,null,"Yes"]
[null,null,null,null,"Yes"]
[null,null,null,null,"Yes"]
[null,null,null,null,"Yes"]
[null,null,null,null,"Yes"]
[null,null,null,null,"Yes"]
[null,null,null,null,"Yes"]
[null,null,null,null,"Yes"]
[null,null,null,null,"Yes"]
[null,null,null,null,"Yes"]
[null,null,null,null,"Yes"]
[null,null,null,null,"Yes"]
[null,null,null,null,"Yes"]
[null,null,null,null,"Yes"]
[null,null,null,null,"Yes"]
[null,null,null,null,"Yes"]
[null,null,null,null,"Yes"]
[null,null,null,null,"Yes"]
[null,null,null,null,{"$f":"IF((D50+1095)<$G$1,\"Yes\",\"\")","v":"Yes"}]
[null,null,null,null,"Yes"]
[null,null,null,null,"Yes"]
[null,null,null,null,"Yes"]
[null,null,null,null,"Yes"]
[null,null,null,null,"Yes"]
[null,null,null,null,"Yes"]
[null,null,null,null,"Yes"]
[null,null,null,null,"Yes"]
[null,null,null,null,"Yes"]
[null,null,null,null,"Yes"]
[null,null,null,null,"Yes"]
[null,null,null,null,"Yes"]
[null,null,null,null,"Yes"]
[null,null,null,null,"Yes"]
[null,null,null,null,"Yes"]
[null,null,null,null,"Yes"]
[null,null,null,null,"Yes"]
[null,null,null,null,"Yes"]
[null,null,null,null,{"$f":"IF((D69+1095)<$G$1,\"Yes\",\"\")","v":"Yes"}]
[null,null,null,null,"Yes"]
[null,null,null,null,"Yes"]
[null,null,null,null,"Yes"]
[null,null,null,null,"Yes"]
[null,null,null,null,"Yes"]
[null,null,null,null,"Yes"]
[null,null,null,null,"Yes"]
[null,null,null,null,"Yes"]
[null,null,null,null,"Yes"]
[null,null,null,null,"Yes"]
[null,null,null,null,"Yes"]
[null,null,null,null,"Yes"]
[null,null,null,null,"Yes"]
[null,null,null,null,"Yes"]
[null,null,null,null,"Yes"]
[null,null,null,null,"Yes"]
[null,null,null,null,"Yes"]
[null,null,null,null,"Yes"]
[null,null,null,null,"Yes"]
[null,null,null,null,"Yes"]
[null,null,null,null,"Yes"]
[null,null,null,null,"Yes"]
[null,null,null,null,"Yes"]
[null,null,null,null,"Yes"]
[null,null,null,null,"Yes"]
[null,null,null,null,"Yes"]
[null,null,null,null,"Yes"]
[null,null,null,null,"Yes"]
[null,null,null,null,"Yes"]
[null,null,null,null,"Yes"]
[null,null,null,null,"Yes"]
[null,null,null,null,"Yes"]
[null,null,null,null,"Yes"]
[null,null,null,null,"Yes"]
[null,null,null,null,"Yes"]
[null,null,null,null,"Yes"]
[null,null,null,null,"Yes"]
[null,null,null,null,"Yes"]
[null,null,null,null,"Yes"]
[null,null,null,null,"Yes"]
[null,null,null,null,"Yes"]
[null,null,null,null,"Yes"]
[null,null,null,null,"Yes"]
[null,null,null,null,"Yes"]
[null,null,null,null,"Yes"]
[null,null,null,null,"Yes"]
[null,null,null,null,"Yes"]
[null,null,null,null,"Yes"]
[null,null,null,null,"Yes"]
[null,null,null,null,"Yes"]
[null,null,null,null,"Yes"]
[null,null,null,null,"Yes"]
[null,null,null,null,"Yes"]
[null,null,null,null,"Yes"]
[null,null,null,null,"Yes"]
[null,null,null,null,"Yes"]
[null,null,null,null,"Yes"]
[null,null,null,null,"Yes"]
[null,null,null,null,"Yes"]
[null,null,null,null,"Yes"]
[null,null,null,null,"Yes"]
[null,null,null,null,"Yes"]
[null,null,null,null,{"$f":"IF((D132+1095)<$G$1,\"Yes\",\"\")","v":"Yes"}]
[null,null,null,null,{"$f":"IF((D133+1095)<$G$1,\"Yes\",\"\")","v":"Yes"}]
[null,null,null,null,{"$f":"IF((D134+1095)<$G$1,\"Yes\",\"\")","v":"Yes"}]
[null,null,null,null,{"$f":"IF((D135+1095)<$G$1,\"Yes\",\"\")","v":"Yes"}]
[null,null,null,null,{"$f":"IF((D136+1095)<$G$1,\"Yes\",\"\")","v":"Yes"}]
[null,null,null,null,"Yes"]
[null,null,null,null,"Yes"]
[null,null,null,null,"Yes"]
[null,null,null,null,"Yes"]
[null,null,null,null,"Yes"]
[null,null,null,null,"Yes"]
[null,null,null,null,"Yes"]
[null,null,null,null,"Yes"]
[null,null,null,null,"Yes"]
[null,null,null,null,"Yes"]
[null,null,null,null,"Yes"]
[null,null,null,null,{"$f":"IF((D148+1095)<$G$1,\"Yes\",\"\")","v":"Yes"}]
[null,null,null,null,"Yes"]
[null,null,null,null,"Yes"]
[null,null,null,null,"Yes"]
[null,null,null,null,"Yes"]
[null,null,null,null,"Yes"]
[null,null,null,null,"Yes"]
[null,null,null,null,"Yes"]
[null,null,null,null,"Yes"]
[null,null,null,null,"Yes"]
[null,null,null,null,"Yes"]
[null,null,null,null,"Yes"]
[null,null,null,null,"Yes"]
[null,null,null,null,"Yes"]

{"sheet":"Slings","index":13,"n_rows":41,"n_cols":15,"rows_kept":41,"cut":false,"hidden":false,"merged":[[0,0,0,16],[26,0,26,4]]}
["SLING ANNUAL CERTIFICATION Fab Shop"]
[]
["Manufacturer","Type","Length","Manufacture Date","Logged In Date","In-Service Date","Inspection Date","Inspector","Inspector Address","Serial Number","Maximum Load Capacity (lbs)","Column1","Column2","Safe Working Load (lbs)","Description of Gear"]
[null,null,null,null,null,null,null,null,null,null,"Vertical","Choker","90 ͦͦBasket"]
["Continental",3,25,"November, 2021","2021-12-08",null,null,null,null,560674,11000,8800,22000]
["Continental",3,25,"November, 2021","2021-12-08",null,null,null,null,560672,11000,8800,22000]
["Continental","Continuous",null,"March, 2021","2021-12-08",null,null,null,null,539263,6400,6700,16300]
["Continental",3,16,"October, 2021","2021-12-08",null,null,null,null,560856,8800,7040,17600]
["Continental",3,16,"October, 2021","2021-12-08",null,null,null,null,560860,8800,7040,17600]
["Continental",3,16,"October, 2021","2021-12-08",null,null,null,null,560816,6200,4960,12400]
["Continental",3,16,"October, 2021","2021-12-08",null,null,null,null,560813,6200,4960,12400]
["Continental",3,8,"June, 2020","2021-12-08",null,null,null,null,521090,6200,4960,12400]
["Continental",3,6,"July, 2021","2021-12-08",null,null,null,null,551679,6200,4960,12400]
["Continental",3,6,"July, 2021","2021-12-08",null,null,null,null,551683,6200,4960,12400]
["Continental",3,12,"October, 2021","2021-12-08",null,null,null,null,560812,6200,4960,12400]
["Continental",3,12,"October, 2021","2021-12-08",null,null,null,null,560810,6200,4960,12400]
["Continental",3,10,"October, 2021","2021-12-08",null,null,null,null,560835,8800,7040,17600]
["Continental",3,10,"October, 2021","2021-12-08",null,null,null,null,560836,8800,7040,17600]
["Continental",3,8,"June, 2020","2021-12-08",null,null,null,null,521063,3100,2480,6200]
["Continental",3,10,"June, 2020","2021-12-08",null,null,null,null,521074,3100,2480,6200]
["Continental",3,10,"June, 2020","2021-12-08",null,null,null,null,521065,3100,2480,6200]
["Continental",3,8,"June, 2020","2021-12-08",null,null,null,null,521093,6200,4960,12400]
["Continental",3,8,"November, 2019","2021-12-08",null,null,null,null,505627,6200,4960,12400]
["Continental","Continuous",null,"March, 2021","2021-12-08",null,null,null,null,539262,8400,6700,16300]
["Continental",3,8,"June, 2020","2021-12-08",null,null,null,null,530412,6200,4960,12400]
[]
["Slings",null,null,null,null,null,null,null,null,null,null,null,null,"12300 at 60 degrees","Chain sling 6ft 2 inch"]
["Inspection Date","Inspector","Address","Serial Number","Max Load Capacity",null,null,null,null,null,null,null,null,"5700 at 90 degrees","Chain sling 6ft 1 inch"]
["2021-12-07","Test Right Rigging Ltd.","11074 Chemainus Rd","1613-5",14200,null,null,null,null,null,null,null,null,"8800 at 90 degrees","Chain sling 13ft I inch"]
["2021-12-07","Test Right Rigging Ltd.","11074 Chemainus Rd","G1211C2",11400,null,null,null,null,null,null,null,null,"7400 at 60 degrees","Chain sling 6ft 11 inch"]
["2021-12-07","Test Right Rigging Ltd.","11074 Chemainus Rd","1613-4",17600,null,null,null,null,null,null,null,null,"12300 at 60 degrees","Chain sling 6ft 1 inch"]
["2021-12-07","Test Right Rigging Ltd.","11074 Chemainus Rd","GT0320B",8600,null,null,null,null,null,null,null,null,"11100 at 60 degrees","Chain sling 3ft 10 inch"]
["2021-12-07","Test Right Rigging Ltd.","11074 Chemainus Rd","1613-2",14200,null,null,null,null,null,null,null,null,"5700 at 90 degrees","Chain sling 10ft 5.5 inch"]
["2021-12-07","Test Right Rigging Ltd.","11074 Chemainus Rd","A0441",8600,null,null,null,null,null,null,null,null,"5700 at 90 degrees","Chain sling 10ft 5.5 inch"]
["2021-12-07","Test Right Rigging Ltd.","11074 Chemainus Rd","116GT1",11400,null,null,null,null,null,null,null,null,"22900 at 60 degrees","Chain sling 7ft 5 inch"]
["2021-12-07","Test Right Rigging Ltd.","11074 Chemainus Rd","116GT2",11400,null,null,null,null,null,null,null,null,"7400 at 60 degrees","Chain sling 6ft 10.5inch"]
["2021-12-07","Test Right Rigging Ltd.","11074 Chemainus Rd","1613-6",17600,null,null,null,null,null,null,null,null,"8800 at 90 degrees","Chan sling 13ft 1.25 inch"]
["2021-12-07","Test Right Rigging Ltd.","11074 Chemainus Rd","GT0320C",8600,null,null,null,null,null,null,null,null,"12300 at 60 degrees","Chain sling 6ft 2 inch"]
["2021-12-07","Test Right Rigging Ltd.","11074 Chemainus Rd","1613-1",17600,null,null,null,null,null,null,null,null,"6050 at 60 degrees","Chain sling 6ft"]
["2021-12-07","Test Right Rigging Ltd.","11074 Chemainus Rd","1613-3",14200]
["2021-12-07","Test Right Rigging Ltd.","11074 Chemainus Rd","GT0320A",7000]

{"sheet":"Pivot Table","index":14,"n_rows":20,"n_cols":9,"rows_kept":20,"cut":false,"hidden":true,"merged":[]}
["Service Date","(All)",null,null,null,null,"Count of Hours/Odometer","Column Labels"]
["Vehicle Unit Number","Unit 1",null,null,null,null,"Row Labels",44607,"Grand Total"]
[null,null,null,null,null,null,"JLG"]
[null,"Column Labels",null,null,null,null,"(blank)"]
[null,"2020",null,"2020 Total","Grand Total",null,"(blank)"]
[null,"Qtr1","Qtr2",null,null,null,"Grand Total"]
["Sum of Odometer",54829,55934,110763,110763]
[]
[]
[]
["Count of Service Date","Column Labels"]
[null,"2022","Grand Total"]
[]
["Row Labels"]
["Forklift",3,3]
["HIAB",1,1]
["JLG",1,1]
["Mobile Crane",1,1]
["Overhead Crane",1,1]
["Grand Total",7,7]